fUSD/lending_fUSD_20250213
["ID","MTS","AMOUNT","RATE_DAILY","PERIOD"]
[353015541,1739485963989,-718.5,0.00015342,2]
[353015542,1739485963999,-608.23210135,0.00015342,2]
[353015543,1739485964009,-2265.71,0.00015342,3]
[353015544,1739485964019,-1464.62,0.00015342,2]
[353015545,1739485964028,-1779.83,0.00015342,2]
[353015546,1739485964041,-551.0,0.00015342,2]
[353015547,1739485964053,-1813.74,0.00015342,2]
[353015548,1739485964063,-558.37,0.00015342,2]
[353015549,1739485964073,-807.26,0.00015342,2]
[353015550,1739485964084,-1306.72,0.00015342,2]
[353015551,1739485964093,-1123.76,0.00015342,2]
[353015552,1739485964103,-844.9,0.00015342,2]
[353015553,1739485964113,-2257.68,0.00015342,2]
[353015554,1739485964123,-831.33,0.00015342,2]
[353015555,1739485964132,-923.9,0.00015342,2]
[353015556,1739485964143,-500.0,0.00015342,2]
[353015557,1739485964153,-1270.71,0.00015342,2]
[353015558,1739485964163,-897.69,0.00015342,2]
[353015559,1739485964173,-853.17,0.00015342,2]
[353015560,1739485964183,-840.31,0.00015342,2]
[353015561,1739485964193,-1705.94,0.00015342,2]
[353015562,1739485964203,-876.71,0.00015342,2]
[353015563,1739485964212,-885.91,0.00015342,2]
[353015564,1739485964222,-500.0,0.00015342,2]
[353015565,1739485964231,-2161.09,0.00015342,2]
[353015566,1739485964241,-3040.0,0.00015342,2]
[353015567,1739485964251,-1238.79,0.00015342,2]
[353015568,1739485964260,-1105.8,0.00015342,2]
[353015569,1739485964269,-2265.19,0.00015342,2]
[353015570,1739485964278,-1322.86,0.00015342,2]
[353015571,1739485964288,-906.34,0.00015342,2]
[353015572,1739485964298,-523.6,0.00015342,2]
[353015573,1739485964307,-646.18,0.00015342,2]
[353015574,1739485964316,-893.53,0.00015342,2]
[353015575,1739485964326,-970.55,0.00015342,2]
[353015576,1739485964335,-702.31,0.00015342,2]
[353015577,1739485964344,-553.1,0.00015342,2]
[353015578,1739485964354,-2482.92,0.00015342,2]
[353015579,1739485964363,-858.18,0.00015342,2]
[353015580,1739485964372,-710.97,0.00015342,2]
[353015581,1739485964382,-669.76,0.00015342,2]
[353015582,1739485964393,-1892.5,0.00015342,2]
[353015583,1739485964402,-151.603264,0.00015342,2]
[353015584,1739485964411,-739.26,0.00015342,2]
[353015585,1739485964421,-1559.26,0.00015342,2]
[353015586,1739485964430,-1326.07,0.00015342,2]
[353015587,1739485964439,-602.38,0.00015342,2]
[353015588,1739485964451,-835.99,0.00015342,2]
[353015589,1739485964460,-1789.82,0.00015342,2]
[353015590,1739485964469,-1318.31,0.00015342,2]
[353015591,1739485964480,-551.86,0.00015342,2]
[353015592,1739485964490,-864.67,0.00015342,2]
[353015593,1739485964500,-500.0,0.00015342,2]
[353015594,1739485964510,-1141.82,0.00015342,2]
[353015595,1739485964519,-1994.16,0.00015342,2]
[353015596,1739485964528,-812.11,0.00015342,2]
[353015597,1739485964538,-859.06,0.00015342,2]
[353015598,1739485964548,-1079.19,0.00015342,2]
[353015599,1739485964559,-1941.15,0.00015342,2]
[353015600,1739485964568,-2409.32,0.00015342,2]
[353015601,1739485964579,-592.63,0.00015342,2]
[353015602,1739485964589,-900.38,0.00015342,2]
[353015603,1739485964599,-1741.64,0.00015342,2]
[353015604,1739485964609,-1010.42,0.00015342,2]
[353015605,1739485964619,-1201.88,0.00015342,2]
[353015606,1739485964628,-730.65,0.00015342,2]
[353015607,1739485964638,-2964.55,0.00015342,2]
[353015608,1739485964648,-645.62,0.00015342,2]
[353015609,1739485964658,-1693.27,0.00015342,2]
[353015610,1739485964668,-765.27,0.00015342,2]
[353015611,1739485964677,-1023.18,0.00015342,2]
[353015612,1739485964687,-1983.35,0.00015342,2]
[353015613,1739485964698,-1199.21,0.00015342,2]
[353015614,1739485964708,-1991.14,0.00015342,2]
[353015615,1739485964718,-533.09,0.00015342,2]
[353015616,1739485964728,-355.25202038,0.00015342,2]
[353015617,1739485964739,-4281.75,0.00015342,2]
[353015618,1739485964748,-2700.69,0.00015342,2]
[353015619,1739485964758,-1072.56,0.00015342,2]
[353015620,1739485964769,-2181.51,0.00015342,2]
[353015621,1739485964779,-2105.12,0.00015342,2]
[353015622,1739485964789,-2362.29,0.00015342,2]
[353015623,1739485964799,-797.65,0.00015342,2]
[353015624,1739485964809,-1372.43,0.00015342,2]
[353015625,1739485964819,-500.0,0.00015342,2]
[353015626,1739485964829,-2270.27,0.00015342,2]
[353015627,1739485964838,-701.26,0.00015342,2]
[353015628,1739485964847,-1635.6,0.00015342,2]
[353015629,1739485964856,-1210.46,0.00015342,2]
[353015630,1739485964866,-1551.99,0.00015342,2]
[353015631,1739485964875,-4033.58,0.00015342,2]
[353015632,1739485964884,-2766.93,0.00015342,2]
[353015633,1739485964893,-2765.04,0.00015342,2]
[353015634,1739485964903,-660.75,0.00015342,2]
[353015635,1739485964912,-2103.7,0.00015342,2]
[353015636,1739485964922,-924.48,0.00015342,2]
[353015637,1739485964932,-794.33,0.00015342,2]
[353015638,1739485964942,-1140.21,0.00015342,2]
[353015639,1739485964953,-1374.92,0.00015342,2]
[353015640,1739485964963,-1394.91,0.00015342,2]
[353015641,1739485964972,-2230.12,0.00015342,2]
[353015642,1739485964982,-500.0,0.00015342,2]
[353015643,1739485964992,-878.31,0.00015342,2]
[353015644,1739485965001,-1071.07,0.00015342,2]
[353015645,1739485965011,-3342.84,0.00015342,2]
[353015646,1739485965020,-1308.38,0.00015342,2]
[353015647,1739485965031,-683.58,0.00015342,2]
[353015648,1739485965045,-3531.08,0.00015342,2]
[353015649,1739485965055,-1653.81,0.00015342,2]
[353015650,1739485965065,-553.67,0.00015342,2]
[353015651,1739485965076,-988.77,0.00015342,2]
[353015652,1739485965087,-2226.29,0.00015342,2]
[353015653,1739485965097,-1807.21,0.00015342,2]
[353015654,1739485965107,-969.77,0.00015342,2]
[353015655,1739485965117,-500.0,0.00015342,2]
[353015656,1739485965128,-3314.33,0.00015342,2]
[353015657,1739485965137,-1796.12,0.00015342,2]
[353015658,1739485965147,-3189.0,0.00015342,2]
[353015659,1739485965157,-803.11,0.00015342,2]
[353015660,1739485965166,-607.85,0.00015342,2]
[353015661,1739485965176,-761.91,0.00015342,2]
[353015662,1739485965185,-621.21,0.00015342,2]
[353015663,1739485965195,-1972.85,0.00015342,2]
[353015664,1739485965205,-3990.94,0.00015342,2]
[353015665,1739485965215,-523.93,0.00015342,2]
[353015666,1739485965224,-719.42,0.00015342,2]
[353015667,1739485965234,-749.77,0.00015342,2]
[353015668,1739485965244,-1753.67,0.00015342,2]
[353015669,1739485965253,-2497.17,0.00015342,2]
[353015670,1739485965263,-192.28455133,0.00015342,2]
[353015671,1739485965273,-1325.27,0.00015342,2]
[353015672,1739485965283,-3120.71,0.00015342,2]
[353015673,1739485965293,-511.69,0.00015342,2]
[353015674,1739485965303,-3912.39,0.00015342,2]
[353015675,1739485965313,-635.38,0.00015342,2]
[353015676,1739485965323,-1203.12,0.00015342,2]
[353015677,1739485965332,-1628.89,0.00015342,2]
[353015678,1739485965342,-1174.26,0.00015342,2]
[353015679,1739485965351,-5014.48,0.00015342,2]
[353015680,1739485965360,-591.53,0.00015342,2]
[353015681,1739485965369,-2834.89,0.00015342,2]
[353015682,1739485965378,-1129.98,0.00015342,2]
[353015683,1739485965387,-4012.08,0.00015342,2]
[353015684,1739485965396,-1877.06,0.00015342,2]
[353015685,1739485965407,-2305.18,0.00015342,2]
[353015686,1739485965416,-3400.07,0.00015342,2]
[353015687,1739485965426,-1278.06,0.00015342,2]
[353015688,1739485965434,-2677.19,0.00015342,2]
[353015689,1739485965443,-2091.53,0.00015342,2]
[353015690,1739485965454,-10601.94,0.00015342,2]
[353015691,1739485965464,-6319.86,0.00015342,2]
[353015692,1739485965473,-1914.19,0.00015342,2]
[353015693,1739485965483,-2222.28,0.00015342,2]
[353015694,1739485965492,-1244.36,0.00015342,2]
[353015695,1739485965502,-2434.73,0.00015342,2]
[353015696,1739485965511,-1301.75,0.00015342,2]
[353015697,1739485965521,-3378.69,0.00015342,2]
[353015698,1739485965530,-1073.98,0.00015342,2]
[353015699,1739485965541,-276.30498926,0.00015342,2]
[353015700,1739485965551,-1003.25,0.00015342,2]
[353015701,1739485965560,-3213.97,0.00015342,2]
[353015702,1739485965569,-1894.84,0.00015342,2]
[353015703,1739485965578,-1618.51,0.00015342,2]
[353015704,1739485965587,-3027.83,0.00015342,2]
[353015705,1739485965596,-1463.57,0.00015342,2]
[353015706,1739485965605,-1866.04,0.00015342,2]
[353015707,1739485965615,-551.57,0.00015342,2]
[353015708,1739485965623,-3405.09,0.00015342,2]
[353015709,1739485965633,-3558.25,0.00015342,2]
[353015710,1739485965642,-3794.0,0.00015342,2]
[353015711,1739485965651,-1199.38,0.00015342,2]
[353015712,1739485965661,-5141.78,0.00015342,2]
[353015713,1739485965671,-5036.58,0.00015342,2]
[353015714,1739485965679,-972.02,0.00015342,2]
[353015715,1739485965689,-1457.37,0.00015342,2]
[353015716,1739485965699,-1646.26,0.00015342,2]
[353015717,1739485965708,-1023.76,0.00015342,2]
[353015718,1739485965717,-4943.34,0.00015342,2]
[353015719,1739485965726,-973.76,0.00015342,2]
[353015720,1739485965735,-3488.7,0.00015342,2]
[353015721,1739485965744,-1078.92,0.00015342,2]
[353015722,1739485965753,-9947.08,0.00015342,2]
[353015723,1739485965762,-1167.35,0.00015342,2]
[353015724,1739485965771,-1925.44,0.00015342,2]
[353015725,1739485965780,-3871.01,0.00015342,2]
[353015726,1739485965790,-3374.31,0.00015342,2]
[353015727,1739485965799,-3262.34,0.00015342,2]
[353015728,1739485965808,-3751.7,0.00015342,2]
[353015729,1739485965818,-2216.47,0.00015342,2]
[353015730,1739485965827,-500.0,0.00015342,2]
[353015731,1739485965837,-327.20519668,0.00015342,2]
[353015732,1739485965846,-2198.57,0.00015342,2]
[353015733,1739485965855,-1272.94,0.00015342,2]
[353015734,1739485965864,-3047.23,0.00015342,2]
[353015735,1739485965874,-4282.13,0.00015342,2]
[353015736,1739485965884,-1579.29,0.00015342,2]
[353015737,1739485965892,-2262.09,0.00015342,2]
[353015738,1739485965899,-2034.1,0.00015342,2]
[353015739,1739485965906,-4796.16,0.00015342,2]
[353015740,1739485965912,-621.58,0.00015342,2]
[353015741,1739485965919,-4188.27,0.00015342,2]
[353015742,1739485965927,-2900.35,0.00015342,2]
[353015743,1739485965935,-5302.96,0.00015342,2]
[353015744,1739485965942,-3352.12,0.00015342,2]
[353015745,1739485965953,-525.01,0.00015342,2]
[353015746,1739485965962,-2517.29,0.00015342,2]
[353015747,1739485965972,-3510.5,0.00015342,2]
[353015748,1739485965981,-1911.76,0.00015342,2]
[353015749,1739485965991,-3186.25,0.00015342,2]
[353015750,1739485966000,-1411.53,0.00015342,2]
[353015751,1739485966010,-5245.34,0.00015342,2]
[353015752,1739485966019,-4040.71,0.00015342,2]
[353015753,1739485966224,-2434.4,0.00015342,2]
[353015754,1739485966247,-797.43,0.00015342,2]
[353015755,1739485966258,-3997.95,0.00015342,2]
[353015756,1739485966267,-3418.06,0.00015342,2]
[353015757,1739485966277,-3613.39,0.00015342,2]
[353015758,1739485966287,-566.64,0.00015342,2]
[353015759,1739485966298,-8838.73,0.00015342,2]
[353015760,1739485966309,-720.74,0.00015342,2]
[353015761,1739485966319,-624.99,0.00015342,2]
[353015762,1739485966330,-3533.94,0.00015342,2]
[353015763,1739485966340,-3776.32,0.00015342,2]
[353015764,1739485966350,-522.13,0.00015342,2]
[353015765,1739485966360,-4171.69,0.00015342,2]
[353015766,1739485966370,-2767.11,0.00015342,2]
[353015767,1739485966380,-157.16,0.00015342,2]
[353015768,1739485966390,-1300.63,0.00015342,2]
[353015769,1739485966400,-3523.18,0.00015342,2]
[353015770,1739485966410,-4629.45,0.00015342,2]
[353015771,1739485966420,-2317.93,0.00015342,2]
[353015772,1739485966429,-542.74,0.00015342,2]
[353015773,1739485966439,-6501.79,0.00015342,2]
[353015774,1739485966449,-649.96,0.00015342,2]
[353015775,1739485966459,-2852.77,0.00015342,2]
[353015776,1739485966469,-4468.57,0.00015342,2]
[353015777,1739485966480,-773.78,0.00015342,2]
[353015778,1739485966490,-724.47,0.00015342,2]
[353015779,1739485966500,-2513.38,0.00015342,2]
[353015780,1739485966509,-4071.43,0.00015342,2]
[353015781,1739485966519,-3680.29,0.00015342,2]
[353015782,1739485966528,-3113.41,0.00015342,2]
[353015783,1739485966538,-964.12,0.00015342,2]
[353015784,1739485966548,-1523.71,0.00015342,2]
[353015785,1739485966558,-741.53,0.00015342,2]
[353015786,1739485966568,-525.45,0.00015342,2]
[353015787,1739485966578,-2768.98,0.00015342,2]
[353015788,1739485966587,-1470.77,0.00015342,2]
[353015789,1739485966597,-3441.38,0.00015342,2]
[353015790,1739485966607,-4132.51,0.00015342,2]
[353015791,1739485966616,-1712.88,0.00015342,2]
[353015792,1739485966625,-4938.55,0.00015342,2]
[353015793,1739485966635,-2124.68,0.00015342,2]
[353015794,1739485966645,-1789.26,0.00015342,2]
[353015795,1739485966656,-1226.02,0.00015342,2]
[353015796,1739485966666,-1451.96,0.00015342,2]
[353015797,1739485966676,-824.05,0.00015342,2]
[353015798,1739485966686,-3558.23,0.00015342,2]
[353015799,1739485966695,-4167.53,0.00015342,2]
[353015800,1739485966706,-880.79,0.00015342,2]
[353015801,1739485966716,-1838.56,0.00015342,2]
[353015802,1739485966726,-1936.97,0.00015342,2]
[353015803,1739485966736,-2962.2,0.00015342,2]
[353015804,1739485966747,-598.78,0.00015342,2]
[353015805,1739485966757,-5500.0,0.00015342,10]
[353015806,1739485966767,-1004.17064154,0.00015351,2]
[353015807,1739485966777,-792.28,0.00015355,2]
[353015808,1739485966787,-50000.0,0.00015399,2]
[353015809,1739485966797,-4521.6640893,0.00015399,2]
[353015810,1739485966807,-5000.0,0.000154,2]
[353015811,1739485966817,-205.0,0.000154,2]
[353015812,1739485966827,-205.0,0.000154,2]
[353015813,1739485966837,-205.0,0.000154,2]
[353015814,1739485966847,-205.0,0.000154,2]
[353015815,1739485966857,-205.0,0.000154,2]
[353015816,1739485966867,-205.0,0.000154,2]
[353015817,1739485966877,-205.0,0.000154,2]
[353015818,1739485966887,-205.0,0.000154,2]
[353015819,1739485966898,-205.0,0.000154,2]
[353015820,1739485966907,-205.0,0.000154,2]
[353015821,1739485966917,-205.0,0.000154,2]
[353015822,1739485966928,-205.0,0.000154,2]
[353015823,1739485966938,-205.0,0.000154,2]
[353015824,1739485966949,-205.0,0.000154,2]
[353015825,1739485966959,-205.0,0.000154,2]
[353015826,1739485966969,-208.0,0.000154,2]
[353015827,1739485966978,-208.0,0.000154,2]
[353015828,1739485966988,-208.0,0.000154,2]
[353015829,1739485966998,-208.0,0.000154,2]
[353015830,1739485967009,-208.0,0.000154,2]
[353015831,1739485967019,-208.0,0.000154,2]
[353015832,1739485967028,-208.0,0.000154,2]
[353015833,1739485967043,-202.0,0.000154,2]
[353015834,1739485967053,-210.0,0.000154,2]
[353015835,1739485967064,-202.0,0.000154,2]
[353015836,1739485967075,-202.0,0.000154,2]
[353015837,1739485967085,-202.0,0.000154,2]
[353015838,1739485967095,-3421.16817865,0.00015414,2]
[353015839,1739485967105,-1124.476697,0.00015424,2]
[353015840,1739485967114,-1030.770305,0.00015424,2]
[353015841,1739485967123,-1369.077968,0.00015424,2]
[353015842,1739485967133,-781.27,0.00015424,2]
[353015843,1739485967142,-640.12,0.00015424,2]
[353015844,1739485967153,-571.73,0.00015424,2]
[353015845,1739485967162,-767.83,0.00015424,2]
[353015846,1739485967173,-517.58,0.00015424,2]
[353015847,1739485967183,-748.33,0.00015424,2]
[353015848,1739485967193,-1019.36,0.00015424,2]
[353015849,1739485967203,-500.0,0.00015424,2]
[353015850,1739485967213,-536.11,0.00015424,2]
[353015851,1739485967223,-853.88,0.00015424,2]
[353015852,1739485967234,-500.0,0.00015424,2]
[353015853,1739485967244,-1237.75,0.00015424,2]
[353015854,1739485967254,-823.6,0.00015424,2]
[353015855,1739485967264,-588.86,0.00015424,2]
[353015856,1739485967273,-583.03,0.00015424,2]
[353015857,1739485967283,-839.01,0.00015424,2]
[353015858,1739485967292,-632.18,0.00015424,2]
[353015859,1739485967303,-1100.34,0.00015424,2]
[353015860,1739485967313,-443.63826319,0.00015424,2]
[353015861,1739485967323,-907.89,0.00015424,2]
[353015862,1739485967334,-791.76,0.00015424,2]
[353015863,1739485967343,-500.0,0.00015424,2]
[353015864,1739485967352,-1002.52,0.00015424,2]
[353015865,1739485967362,-673.2,0.00015424,2]
[353015866,1739485967372,-864.99,0.00015424,2]
[353015867,1739485967382,-556.42,0.00015424,2]
[353015868,1739485967392,-606.37,0.00015424,2]
[353015869,1739485967403,-426.30054232,0.00015424,2]
[353015870,1739485967414,-398.20617183,0.00015424,2]
[353015871,1739485967423,-542.4,0.00015424,2]
[353015872,1739485967433,-606.89,0.00015424,2]
[353015873,1739485967443,-551.03,0.00015424,2]
[353015874,1739485967453,-571.58,0.00015424,2]
[353015875,1739485967462,-507.69,0.00015424,2]
[353015876,1739485967473,-2208.67,0.00015424,2]
[353015877,1739485967483,-543.67,0.00015424,2]
[353015878,1739485967493,-653.16,0.00015424,2]
[353015879,1739485967503,-823.62,0.00015424,2]
[353015880,1739485967513,-638.54,0.00015424,2]
[353015881,1739485967523,-500.0,0.00015424,2]
[353015882,1739485967532,-1041.6,0.00015424,2]
[353015883,1739485967543,-2539.19,0.00015424,2]
[353015884,1739485967552,-500.0,0.00015424,2]
[353015885,1739485967562,-3052.42,0.00015424,2]
[353015886,1739485967571,-514.61,0.00015424,2]
[353015887,1739485967581,-1525.33,0.00015424,2]
[353015888,1739485967591,-867.43,0.00015424,2]
[353015889,1739485967601,-1400.14,0.00015424,2]
[353015890,1739485967611,-917.77,0.00015424,2]
[353015891,1739485967620,-1241.27,0.00015424,2]
[353015892,1739485967630,-991.55,0.00015424,2]
[353015893,1739485967640,-566.52,0.00015424,2]
[353015894,1739485967650,-398.04921159,0.00015424,2]
[353015895,1739485967659,-633.2,0.00015424,2]
[353015896,1739485967669,-717.52,0.00015424,2]
[353015897,1739485967679,-689.5,0.00015424,2]
[353015898,1739485967688,-965.58,0.00015424,2]
[353015899,1739485967698,-756.27,0.00015424,2]
[353015900,1739485967708,-687.68,0.00015424,2]
[353015901,1739485967718,-1669.58,0.00015424,2]
[353015902,1739485967727,-1501.09,0.00015424,2]
[353015903,1739485967737,-825.83,0.00015424,2]
[353015904,1739485967747,-1337.74,0.00015424,2]
[353015905,1739485967756,-1371.86,0.00015424,2]
[353015906,1739485967766,-583.156381,0.00015424,2]
[353015907,1739485967775,-316.14236167,0.00015424,2]
[353015908,1739485967786,-1702.26,0.00015424,2]
[353015909,1739485967796,-500.0,0.00015424,2]
[353015910,1739485967805,-1754.49,0.00015424,2]
[353015911,1739485967815,-1078.61,0.00015424,2]
[353015912,1739485967825,-869.45,0.00015424,2]
[353015913,1739485967835,-1158.07,0.00015424,2]
[353015914,1739485967844,-991.47,0.00015424,2]
[353015915,1739485967854,-1684.45,0.00015424,2]
[353015916,1739485967863,-526.8,0.00015424,2]
[353015917,1739485967872,-1302.35,0.00015424,2]
[353015918,1739485967881,-660.93,0.00015424,2]
[353015919,1739485967898,-2012.26,0.00015424,2]
[353015920,1739485967920,-854.62,0.00015424,2]
[353015921,1739485967937,-504.56,0.00015424,2]
[353015922,1739485967958,-763.9,0.00015424,2]
[353015923,1739485967976,-696.46,0.00015424,2]
[353015924,1739485967996,-835.17,0.00015424,2]
[353015925,1739485968016,-692.97,0.00015424,2]
[353015926,1739485968038,-566.32,0.00015424,2]
[353015927,1739485968062,-857.95,0.00015424,2]
[353015928,1739485968081,-2021.1,0.00015424,2]
[353015929,1739485968102,-702.16,0.00015424,2]
[353015930,1739485968120,-683.82,0.00015424,2]
[353015931,1739485968138,-1015.7,0.00015424,2]
[353015932,1739485968158,-713.38,0.00015424,2]
[353015933,1739485968173,-1424.92,0.00015424,2]
[353015934,1739485968190,-811.86,0.00015424,2]
[353015935,1739485968206,-988.11,0.00015424,2]
[353015936,1739485968222,-1906.79,0.00015424,2]
[353015937,1739485968237,-1427.42,0.00015424,2]
[353015938,1739485968253,-524.63,0.00015424,2]
[353015939,1739485968269,-881.54,0.00015424,2]
[353015940,1739485968289,-865.9,0.00015424,2]
[353015941,1739485968305,-1372.61,0.00015424,2]
[353015942,1739485968322,-758.33,0.00015424,2]
[353015943,1739485968337,-1840.97,0.00015424,2]
[353015944,1739485968352,-1636.34,0.00015424,2]
[353015945,1739485968367,-1035.24,0.00015424,2]
[353015946,1739485968384,-1782.82,0.00015424,2]
[353015947,1739485968399,-557.25,0.00015424,2]
[353015948,1739485968415,-687.87,0.00015424,2]
[353015949,1739485968429,-888.74,0.00015424,2]
[353015950,1739485968444,-1131.23,0.00015424,2]
[353015951,1739485968460,-548.09,0.00015424,2]
[353015952,1739485968475,-976.11,0.00015424,2]
[353015953,1739485968492,-1065.2,0.00015424,2]
[353015954,1739485968507,-1519.15,0.00015424,2]
[353015955,1739485968522,-825.94,0.00015424,2]
[353015956,1739485968537,-717.12,0.00015424,2]
[353015957,1739485968552,-718.5,0.00015424,2]
[353015958,1739485968567,-1464.62,0.00015424,2]
[353015959,1739485968582,-1779.83,0.00015424,2]
[353015960,1739485968598,-551.0,0.00015424,2]
[353015961,1739485968615,-1813.74,0.00015424,2]
[353015962,1739485968631,-558.37,0.00015424,2]
[353015963,1739485968647,-807.26,0.00015424,2]
[353015964,1739485968662,-1306.72,0.00015424,2]
[353015965,1739485968676,-1123.76,0.00015424,2]
[353015966,1739485968691,-156.890312,0.00015424,2]
[353015967,1739485968705,-844.9,0.00015424,2]
[353015968,1739485968721,-2257.68,0.00015424,2]
[353015969,1739485968736,-831.33,0.00015424,2]
[353015970,1739485968752,-923.9,0.00015424,2]
[353015971,1739485968768,-500.0,0.00015424,2]
[353015972,1739485968783,-1270.71,0.00015424,2]
[353015973,1739485968797,-897.69,0.00015424,2]
[353015974,1739485968812,-853.17,0.00015424,2]
[353015975,1739485968826,-840.31,0.00015424,2]
[353015976,1739485968840,-1705.94,0.00015424,2]
[353015977,1739485968854,-876.71,0.00015424,2]
[353015978,1739485968868,-885.91,0.00015424,2]
[353015979,1739485968883,-500.0,0.00015424,2]
[353015980,1739485968899,-2161.09,0.00015424,2]
[353015981,1739485968915,-3040.0,0.00015424,2]
[353015982,1739485968929,-1238.79,0.00015424,2]
[353015983,1739485968944,-1105.8,0.00015424,2]
[353015984,1739485968961,-2265.19,0.00015424,2]
[353015985,1739485968977,-1322.86,0.00015424,2]
[353015986,1739485968992,-523.6,0.00015424,2]
[353015987,1739485969007,-906.34,0.00015424,2]
[353015988,1739485969020,-646.18,0.00015424,2]
[353015989,1739485969035,-893.53,0.00015424,2]
[353015990,1739485969052,-970.55,0.00015424,2]
[353015991,1739485969067,-702.31,0.00015424,2]
[353015992,1739485969085,-553.1,0.00015424,2]
[353015993,1739485969101,-2482.92,0.00015424,2]
[353015994,1739485969118,-858.18,0.00015424,2]
[353015995,1739485969134,-710.97,0.00015424,2]
[353015996,1739485969149,-669.76,0.00015424,2]
[353015997,1739485969165,-1892.5,0.00015424,2]
[353015998,1739485969180,-739.26,0.00015424,2]
[353015999,1739485969194,-1559.26,0.00015424,2]
[353016000,1739485969212,-1326.07,0.00015424,2]
[353016001,1739485969227,-602.38,0.00015424,2]
[353016002,1739485969242,-835.99,0.00015424,2]
[353016003,1739485969257,-1789.82,0.00015424,2]
[353016004,1739485969272,-1318.31,0.00015424,2]
[353016005,1739485969288,-551.86,0.00015424,2]
[353016006,1739485969303,-864.67,0.00015424,2]
[353016007,1739485969319,-500.0,0.00015424,2]
[353016008,1739485969333,-1141.82,0.00015424,2]
[353016009,1739485969348,-1994.16,0.00015424,2]
[353016010,1739485969364,-812.11,0.00015424,2]
[353016011,1739485969380,-859.06,0.00015424,2]
[353016012,1739485969396,-1079.19,0.00015424,2]
[353016013,1739485969409,-1941.15,0.00015424,2]
[353016014,1739485969423,-2409.32,0.00015424,2]
[353016015,1739485969439,-592.63,0.00015424,2]
[353016016,1739485969453,-900.38,0.00015424,2]
[353016017,1739485969467,-156.890312,0.00015424,2]
[353016018,1739485969481,-1741.64,0.00015424,2]
[353016019,1739485969495,-1010.42,0.00015424,2]
[353016020,1739485969510,-1201.88,0.00015424,2]
[353016021,1739485969524,-730.65,0.00015424,2]
[353016022,1739485969539,-2964.55,0.00015424,2]
[353016023,1739485969553,-645.62,0.00015424,2]
[353016024,1739485969567,-1693.27,0.00015424,2]
[353016025,1739485969582,-765.27,0.00015424,2]
[353016026,1739485969596,-1023.18,0.00015424,2]
[353016027,1739485969611,-1983.35,0.00015424,2]
[353016028,1739485969624,-1199.21,0.00015424,2]
[353016029,1739485969639,-1991.14,0.00015424,2]
[353016030,1739485969653,-533.09,0.00015424,2]
[353016031,1739485969667,-4281.75,0.00015424,2]
[353016032,1739485969680,-2700.69,0.00015424,2]
[353016033,1739485969693,-1072.56,0.00015424,2]
[353016034,1739485969707,-2181.51,0.00015424,2]
[353016035,1739485969721,-2105.12,0.00015424,2]
[353016036,1739485969735,-2362.29,0.00015424,2]
[353016037,1739485969750,-797.65,0.00015424,2]
[353016038,1739485969764,-1372.43,0.00015424,2]
[353016039,1739485969780,-500.0,0.00015424,2]
[353016040,1739485969795,-2270.27,0.00015424,2]